bitfinex/quotes_BTCUSD_20220202
["timestamp","ask_amount","ask_price","bid_price","bid_amount"]
[1643844526658,0.09985728,36964.0,36963.0,0.35071455]
[1643844527056,0.09985728,36964.0,36963.0,9.555e-05]
[1643844527260,0.09985728,36964.0,36962.0,0.09707762]
[1643844527458,0.09985728,36964.0,36963.0,0.350635]
[1643844527910,0.09985728,36964.0,36963.0,0.35073055]
[1643844530618,0.24908064,36964.0,36963.0,0.35073055]
[1643844530824,0.135283,36965.0,36963.0,0.35073055]
[1643844531655,0.09985728,36964.0,36963.0,0.35073055]
[1643844532756,0.14985728,36964.0,36963.0,0.35073055]
[1643844535105,0.14985728,36964.0,36963.0,9.555e-05]
[1643844535304,0.21749728,36964.0,36962.0,0.09672751]
[1643844535509,0.21749728,36964.0,36962.0,0.09749956]
[1643844535706,0.21749728,36964.0,36963.0,0.90077772]
[1643844535905,0.21749728,36964.0,36963.0,0.35087327]
[1643844535906,0.16749728,36964.0,36963.0,0.35087327]
[1643844536305,0.11764,36964.0,36963.0,0.35087327]
[1643844536705,0.06764,36964.0,36963.0,0.35087327]
[1643844536905,0.11764,36964.0,36963.0,0.62550862]
[1643844537712,0.06764,36964.0,36963.0,0.62550862]
[1643844537908,0.36543577,36964.0,36963.0,0.35087327]
[1643844538108,0.36543577,36964.0,36963.0,0.35073055]
[1643844538308,0.36543577,36964.0,36963.0,0.35087327]
[1643844540369,0.11764,36964.0,36963.0,0.35087327]
[1643844540767,0.06764,36964.0,36963.0,0.35087327]
[1643844540969,0.11764,36964.0,36963.0,0.35087327]
[1643844541383,0.06764,36964.0,36963.0,0.35073055]
[1643844541768,0.26557849,36964.0,36963.0,0.35073055]
[1643844542371,0.31543577,36964.0,36963.0,9.555e-05]
[1643844542624,0.31543577,36964.0,36962.0,0.00177205]
[1643844542625,0.624366,36964.0,36962.0,0.00109555]
[1643844542826,0.04991893,36963.0,36962.0,0.0018676]
[1643844543032,0.11750577,36971.0,36964.0,0.95]
[1643844543229,0.010823,36978.0,36970.0,0.00014272]
[1643844543427,0.14797587,36983.0,36977.0,0.00014272]
[1643844543428,0.0001801,36983.0,36977.0,0.00014272]
[1643844543631,0.0677791,36986.0,36982.0,0.00014272]
[1643844543830,0.010822,36983.0,36982.0,0.00014272]
[1643844544029,0.0001801,36986.0,36983.0,0.55]
[1643844544230,0.0001801,36988.0,36985.0,0.60014272]
[1643844544431,0.0001801,36988.0,36987.0,0.55014272]
[1643844544631,0.0001801,36988.0,36987.0,1.75527262]
[1643844544829,0.39739167,37002.0,36987.0,1.6220853]
[1643844545130,0.19779577,36998.0,36993.0,0.94692048]
[1643844545328,0.39739167,37002.0,36993.0,1.82546693]
[1643844545531,0.39739167,37002.0,36994.0,0.95]
[1643844545728,0.74826846,37006.0,36994.0,1.17045253]
[1643844545932,0.65032997,37006.0,36994.0,0.954288]
[1643844546128,0.65032997,37006.0,36994.0,1.29531637]
[1643844546382,0.3866,37006.0,37005.0,0.22241965]
[1643844546575,0.30438667,37003.0,37001.0,0.28872567]
[1643844546777,0.26438667,37003.0,37002.0,0.64491291]
[1643844546977,0.26438667,37003.0,37002.0,0.97856834]
[1643844547375,0.26438667,37003.0,37002.0,1.05824501]
[1643844548376,0.26438667,37003.0,37002.0,1.12579801]
[1643844550208,0.26438667,37003.0,37002.0,0.521747]
[1643844550413,0.36438667,37003.0,37002.0,0.521747]
[1643844551210,0.36438667,37003.0,37002.0,0.454194]
[1643844551812,0.41438667,37003.0,37002.0,0.404194]
[1643844552012,0.41438667,37003.0,37002.0,0.054]
[1643844552610,0.31438667,37003.0,37002.0,0.054]
[1643844552911,0.41438667,37003.0,37002.0,0.054]
[1643844553313,0.36438667,37003.0,37002.0,0.054]
[1643844555166,0.41438667,37003.0,37002.0,0.054]
[1643844555366,0.42520267,37003.0,37002.0,0.054]
[1643844555566,0.067574,37001.0,36997.0,0.054]
[1643844555767,0.067574,37001.0,36998.0,0.350237]
[1643844555970,0.19793849,36999.0,36998.0,0.350237]
[1643844556169,0.14793849,36995.0,36990.0,0.135154]
[1643844556373,0.14793849,36995.0,36993.0,0.05]
[1643844556569,0.05,36994.0,36990.0,0.135154]
[1643844556769,0.05,36991.0,36990.0,0.135154]
[1643844556970,0.19793849,36991.0,36990.0,0.485475]
[1643844557169,0.19793849,36991.0,36990.0,0.350321]
[1643844557369,0.19793849,36991.0,36988.0,0.350352]
[1643844557831,0.09823048,36990.0,36988.0,0.350352]
[1643844558834,0.19871114,36991.0,36988.0,0.350352]
[1643844559433,0.19793849,36991.0,36988.0,0.350352]
[1643844559633,0.14871114,36991.0,36988.0,0.350352]
[1643844559835,0.14889107,36991.0,36988.0,0.350352]
[1643844560432,0.05,36989.0,36988.0,0.350352]
[1643844562072,0.00095259,36990.0,36988.0,0.350352]
[1643844562269,0.00077266,36990.0,36988.0,0.350352]
[1643844562669,0.1,36989.0,36988.0,0.350352]
[1643844563069,0.14793849,36985.0,36984.0,0.135178]
[1643844563269,0.24793849,36985.0,36984.0,0.485572]
[1643844563669,0.24793849,36985.0,36984.0,0.350394]
[1643844563872,0.24793849,36985.0,36983.0,0.350409]
[1643844564269,0.09793849,36983.0,36982.0,0.35042]
[1643844564470,0.19793849,36983.0,36982.0,0.35042]
[1643844564768,0.24793849,36983.0,36982.0,0.35042]
[1643844566609,0.19793849,36983.0,36982.0,0.35042]
[1643844566809,0.00077271,36984.0,36982.0,0.67134876]
[1643844567010,0.00077271,36984.0,36983.0,0.89236435]
[1643844567308,0.00077271,36984.0,36983.0,1.39677535]
[1643844567309,2.71e-06,36984.0,36983.0,1.39677535]
[1643844567507,2.71e-06,36984.0,36983.0,1.61062069]
[1643844567708,0.00017993,36987.0,36983.0,1.61062069]
[1643844567907,0.00017993,36987.0,36984.0,0.350399]
[1643844568107,0.0215483,36988.0,36985.0,0.95819697]
[1643844568308,0.0215483,36988.0,36986.0,0.350377]
[1643844568509,0.0215483,36988.0,36987.0,0.87576314]
[1643844568865,0.0215483,36988.0,36987.0,0.76923092]
[1643844569465,0.00017993,36991.0,36987.0,0.90437834]
[1643844569666,0.05,36992.0,36991.0,0.3616893]
[1643844569868,0.05,36992.0,36991.0,0.7120103]
[1643844570266,0.05,36992.0,36991.0,0.7620103]
[1643844570668,0.05,36992.0,36991.0,1.07237233]
[1643844571775,0.05,36992.0,36991.0,0.7620103]
[1643844572171,0.05,36992.0,36991.0,0.400321]
[1643844573608,0.00095314,36993.0,36991.0,0.400321]
[1643844573810,0.05,36992.0,36991.0,0.05]
[1643844574010,0.05,36992.0,36991.0,0.35032]
[1643844574209,0.05,36992.0,36989.0,0.350341]
[1643844574415,0.05,36990.0,36989.0,0.350341]
[1643844574813,0.05,36990.0,36982.0,0.054]
[1643844575013,0.05017993,36990.0,36987.0,0.05]
[1643844575214,0.05017993,36990.0,36988.0,0.350355]
[1643844575414,0.05017993,36990.0,36983.0,0.32835305]
[1643844575616,0.05017993,36990.0,36984.0,0.70500806]
[1643844575814,0.00017993,36990.0,36984.0,0.75500806]
[1643844576015,0.05,36988.0,36985.0,0.26943833]
[1643844576213,0.05,36988.0,36986.0,0.350377]
[1643844576465,0.05,36988.0,36986.0,0.400377]
[1643844577259,0.05017993,36988.0,36986.0,0.400377]
[1643844577960,0.05017993,36988.0,36987.0,0.26988908]
[1643844578158,0.05,36988.0,36987.0,0.67025508]
[1643844578358,0.05,36988.0,36987.0,0.400366]
[1643844578860,0.14793849,36988.0,36987.0,0.400366]
[1643844579059,0.05,36988.0,36987.0,0.400366]
[1643844581111,0.05,36988.0,36987.0,0.68889035]
[1643844581710,0.05,36988.0,36987.0,0.74289035]
[1643844583111,0.05,36988.0,36987.0,0.75289035]
[1643844583966,0.05,36988.0,36987.0,0.410366]
[1643844584766,0.14793849,36988.0,36987.0,0.410366]
[1643844585165,0.05,36988.0,36987.0,0.410366]
[1643844588414,0.00077324,36989.0,36987.0,0.410366]
[1643844588612,0.04990725,36988.0,36987.0,0.06]
[1643844588811,0.04990725,36988.0,36987.0,0.360366]
[1643844589013,0.04990725,36988.0,36987.0,0.350366]
[1643844589014,0.19784574,36988.0,36987.0,0.350366]
[1643844589212,0.14793849,36985.0,36984.0,0.05]
[1643844589413,0.14793849,36985.0,36984.0,0.350395]
[1643844589613,0.14793849,36985.0,36977.0,0.34332384]
[1643844589614,0.05,36981.0,36979.0,0.21386386]
[1643844589813,0.14793849,36981.0,36980.0,0.350439]
[1643844590014,0.19784574,36981.0,36979.0,0.07919903]
[1643844590215,0.19784574,36981.0,36980.0,0.750445]
[1643844590412,0.19784574,36981.0,36980.0,0.350445]
[1643844590614,0.04990725,36981.0,36980.0,0.350445]
[1643844593093,0.23826069,36986.0,36980.0,0.62517256]
[1643844593094,0.04990725,36983.0,36980.0,0.62517256]
[1643844593493,0.04990725,36983.0,36980.0,0.83902191]
[1643844593695,0.02291641,36987.0,36980.0,0.83902191]
[1643844593895,0.513,36992.0,36986.0,0.05]
[1643844594094,0.25661038,36993.0,36990.0,0.30777872]
[1643844594296,0.00017993,36997.0,36990.0,0.30777872]
[1643844594297,0.11857993,36997.0,36990.0,0.30777872]
[1643844594495,0.1,36998.0,36994.0,0.09575906]
[1643844594496,0.00017993,36998.0,36994.0,0.09575906]
[1643844594996,0.3627,36999.0,36994.0,0.09575906]
[1643844595219,0.26136122,36997.0,36994.0,0.09575906]
[1643844595619,0.26136122,36997.0,36989.0,0.3753702]
[1643844595820,0.31136122,36997.0,36989.0,0.3253702]
[1643844596020,0.31136122,36997.0,36990.0,0.32942426]
[1643844596219,0.31136122,36997.0,36989.0,0.05]
[1643844596423,0.31136122,36997.0,36985.0,0.34030109]
[1643844596720,0.31136122,36997.0,36985.0,0.39030109]
[1643844596721,0.3105543,36997.0,36985.0,0.39030109]
[1643844596920,0.3105543,36997.0,36990.0,0.07782172]
[1643844596921,0.08340132,36995.0,36990.0,0.07782172]
[1643844597120,0.08340132,36995.0,36990.0,0.12782172]
[1643844597925,0.08340132,36995.0,36990.0,0.07782172]
[1643844598122,0.00077312,36994.0,36990.0,0.07782172]
[1643844598323,0.00095305,36994.0,36990.0,0.07782172]
[1643844598859,0.00095305,36994.0,36990.0,0.12782172]
[1643844599065,0.00017993,36994.0,36990.0,0.12782172]
[1643844599263,0.00077312,36994.0,36990.0,0.07782172]
[1643844599463,0.00077312,36994.0,36987.0,0.21383687]
[1643844599661,0.00077312,36994.0,36988.0,0.05]
[1643844599863,0.00095305,36994.0,36987.0,0.05]
[1643844600161,0.00095305,36994.0,36986.0,0.28724607]
[1643844600162,0.00017993,36994.0,36986.0,0.28724607]
[1643844600362,0.00077313,36992.0,36986.0,0.28724607]
[1643844600565,0.00077313,36992.0,36983.0,0.00077333]
[1643844601364,0.00017993,36993.0,36980.0,0.05]
[1643844601563,0.08339848,36989.0,36985.0,0.27023551]
[1643844602064,0.13339848,36989.0,36985.0,0.26523551]
[1643844602725,0.05,36989.0,36985.0,0.26523551]
[1643844602926,0.00077317,36989.0,36985.0,0.26523551]
[1643844603129,0.00077317,36989.0,36988.0,0.55]
[1643844603327,0.00077317,36989.0,36988.0,0.900355]
[1643844603726,0.00017993,36991.0,36988.0,0.350355]
[1643844603929,0.00017993,36992.0,36988.0,0.64910483]
[1643844604127,0.00077315,36990.0,36986.0,0.52916954]
[1643844604327,0.00077315,36990.0,36987.0,0.05]
[1643844604526,0.00077315,36990.0,36986.0,0.31850018]
[1643844604728,0.00077315,36990.0,36987.0,0.350362]
[1643844604931,0.00017993,36992.0,36987.0,0.350362]
[1643844605130,0.02213549,36993.0,36991.0,0.05]
[1643844605332,0.02213549,36993.0,36992.0,0.6975643]
[1643844605531,0.00017993,36993.0,36992.0,1.0978783]
[1643844605736,0.2,36994.0,36992.0,1.0978783]
[1643844606029,0.2,36994.0,36993.0,0.68222713]
[1643844606230,0.20017993,36994.0,36993.0,0.14085367]
[1643844606673,0.20017993,36994.0,36993.0,0.40601849]
[1643844606872,0.2,36994.0,36993.0,0.75631749]
[1643844608480,0.2,36994.0,36993.0,0.44115267]
[1643844608677,0.2,36994.0,36993.0,0.71166139]
[1643844609079,0.2,36994.0,36993.0,0.76166139]
[1643844609277,0.2,36994.0,36993.0,0.71166139]
[1643844609478,0.52236398,36994.0,36993.0,0.71166139]
[1643844609881,0.52236398,36994.0,36993.0,0.44115267]
[1643844610718,0.52236398,36994.0,36993.0,0.350299]
[1643844610921,0.52236398,36994.0,36992.0,0.1]
[1643844610922,0.52236398,36994.0,36992.0,0.05]
[1643844611218,0.26079719,36991.0,36990.0,0.1]
[1643844611422,0.26079719,36991.0,36988.0,0.05]
[1643844611819,0.08527315,36988.0,36983.0,1.03701074]
[1643844612019,0.26079719,36991.0,36984.0,0.350386]
[1643844612218,0.26079719,36991.0,36984.0,0.400386]
[1643844612420,0.00072133,36988.0,36984.0,0.400386]
[1643844613423,0.09597812,36990.0,36984.0,0.400386]
[1643844613719,0.00072134,36988.0,36984.0,0.400386]
[1643844614568,0.31079719,36991.0,36984.0,0.400386]
[1643844614771,0.16118199,36986.0,36984.0,0.400386]
[1643844616369,0.16118199,36986.0,36985.0,0.6]
[1643844616569,0.16118199,36986.0,36985.0,0.400388]
[1643844616972,0.16118199,36986.0,36985.0,0.350388]
[1643844617820,0.16118199,36986.0,36985.0,0.05]
[1643844618021,0.16118199,36986.0,36985.0,0.400388]
[1643844618221,0.16118199,36986.0,36985.0,0.350388]
[1643844618421,0.16118199,36986.0,36984.0,0.350398]
[1643844619822,0.16190313,36988.0,36984.0,0.350398]
[1643844619823,0.00072114,36988.0,36984.0,0.350398]
[1643844620022,0.16118199,36986.0,36984.0,0.350398]
[1643844620226,0.32236398,36986.0,36984.0,0.350398]
[1643844621767,0.32236398,36986.0,36985.0,0.6]
[1643844621966,0.32236398,36986.0,36985.0,0.950388]
[1643844622168,0.32236398,36986.0,36985.0,0.400388]
[1643844622567,0.32236398,36986.0,36985.0,0.350388]
[1643844623970,0.32236398,36986.0,36984.0,0.400398]
[1643844624169,0.32236398,36986.0,36984.0,0.350398]
[1643844624369,0.32225866,36986.0,36984.0,0.350398]
[1643844624572,0.7267621,36985.0,36983.0,0.00072123]
[1643844624772,0.7267621,36984.0,36983.0,0.00072123]
[1643844624976,0.9274321,36984.0,36983.0,0.00072123]
[1643844625234,1.3781101,36984.0,36983.0,0.00072123]
[1643844625534,1.3781101,36984.0,36976.0,0.002]
[1643844625535,0.25575583,36979.0,36976.0,0.002]
[1643844625734,0.37450339,36978.0,36976.0,0.002]
[1643844626337,0.05,36977.0,36976.0,0.002]
[1643844626637,0.554,36977.0,36976.0,0.002]
[1643844627033,0.37332758,36977.0,36976.0,0.002]
[1643844627534,0.47332758,36977.0,36976.0,0.002]
[1643844628534,0.204,36977.0,36976.0,0.002]
[1643844628735,0.46348845,36977.0,36976.0,0.002]
[1643844629967,0.46348845,36977.0,36969.0,0.00409137]
[1643844629968,0.75,36976.0,36969.0,0.00409137]
[1643844630169,0.75,36976.0,36969.0,0.001]
[1643844630170,0.05,36973.0,36969.0,0.001]
[1643844630368,0.12858863,36972.0,36969.0,0.001]
[1643844630667,0.054,36971.0,36969.0,0.001]
[1643844631268,0.25,36970.0,36965.0,0.00109555]
[1643844631474,0.054,36969.0,36965.0,0.00109555]
[1643844631668,0.054,36968.0,36965.0,0.00109555]
[1643844632818,0.054,36968.0,36966.0,0.00035292]
[1643844633812,0.054,36968.0,36965.0,0.00109555]
[1643844634017,0.054,36968.0,36966.0,0.00077223]
[1643844635614,0.054,36968.0,36966.0,0.0958883]
[1643844636214,0.054,36968.0,36966.0,0.09511607]
[1643844636468,0.054,36968.0,36966.0,0.33244049]
[1643844637470,0.054,36968.0,36966.0,0.33166826]
[1643844637670,0.054,36968.0,36966.0,0.33244049]
[1643844638670,0.054,36968.0,36966.0,0.33166826]
[1643844638871,0.054,36968.0,36966.0,0.33244049]
[1643844639872,0.054,36968.0,36966.0,0.33166826]
[1643844640117,0.054,36968.0,36966.0,0.33244049]
[1643844640921,0.054,36968.0,36966.0,0.33166826]
[1643844641121,0.054,36968.0,36966.0,0.33244049]
[1643844641525,0.054,36968.0,36966.0,0.0958883]
[1643844641726,0.054,36968.0,36966.0,0.00077223]
[1643844641928,0.0543,36968.0,36966.0,0.00077223]
[1643844642127,0.0543,36968.0,36965.0,0.001]
[1643844642324,0.0543,36968.0,36966.0,0.00077223]
[1643844642524,0.37655866,36968.0,36966.0,0.00077223]
[1643844642925,0.47655866,36968.0,36966.0,0.00077223]
[1643844643325,0.47655866,36968.0,36965.0,0.001]
[1643844643528,0.47655866,36968.0,36966.0,0.00077223]
[1643844643964,0.47655866,36968.0,36967.0,0.205724]
[1643844644169,0.47655866,36968.0,36967.0,0.205788]
[1643844644469,0.47655866,36968.0,36967.0,0.003]
[1643844645667,0.42255866,36968.0,36967.0,0.003]
[1643844657321,0.32255866,36968.0,36967.0,0.003]
[1643844658619,0.47255866,36968.0,36967.0,0.003]
[1643844658875,0.37255866,36968.0,36967.0,0.003]
[1643844661075,0.47255866,36968.0,36967.0,0.003]
[1643844664319,0.47255866,36968.0,36967.0,0.00289484]
[1643844664619,0.47255866,36968.0,36967.0,0.00323255]
[1643844673978,0.47255866,36968.0,36967.0,0.35381955]
[1643844674180,0.47255866,36968.0,36967.0,0.00323255]
[1643844679245,0.77978349,36968.0,36967.0,0.00323255]
[1643844679443,1.18446149,36968.0,36967.0,0.00323255]
[1643844680643,0.83378349,36968.0,36967.0,0.00323255]
[1643844680844,0.92723666,36968.0,36967.0,0.00323255]
[1643844682376,0.57655866,36968.0,36967.0,0.00323255]
[1643844684575,0.92723666,36968.0,36967.0,0.00323255]
[1643844684978,0.57655866,36968.0,36967.0,0.00323255]
[1643844689180,0.84708043,36968.0,36967.0,0.00323255]
[1643844689579,1.19775843,36968.0,36967.0,0.00323255]
[1643844695720,1.20858543,36968.0,36967.0,0.00323255]
[1643844696120,1.19775843,36968.0,36967.0,0.00323255]
[1643844696970,1.61775843,36968.0,36967.0,0.00323255]
[1643844699673,1.62858543,36968.0,36967.0,0.00323255]
[1643844699882,1.61775843,36968.0,36967.0,0.00323255]
[1643844702327,1.56775843,36968.0,36967.0,0.00323255]
[1643844703533,0.55008279,36967.0,36965.0,0.00155097]
[1643844703731,0.7314401,36966.0,36965.0,0.00155097]
[1643844703980,0.854678,36966.0,36965.0,0.00155097]
[1643844704182,0.854678,36966.0,36963.0,0.82677413]
[1643844704183,0.55,36965.0,36963.0,0.42641265]
[1643844704379,0.404678,36964.0,36963.0,0.42641265]
[1643844704581,0.404678,36964.0,36963.0,0.02041065]
[1643844704582,0.85639637,36964.0,36963.0,0.02041065]
[1643844704778,1.00639637,36964.0,36963.0,0.02041065]
[1643844704979,1.07406537,36964.0,36963.0,0.02041065]
[1643844705383,1.74906537,36964.0,36963.0,0.02041065]
[1643844705982,1.79906537,36964.0,36963.0,0.02041065]
[1643844706684,1.74906537,36964.0,36963.0,0.02041065]
[1643844706883,2.16906537,36964.0,36963.0,0.02041065]
[1643844707483,2.21906537,36964.0,36963.0,0.02041065]
[1643844708122,2.16906537,36964.0,36963.0,0.02041065]
[1643844709526,2.49132403,36964.0,36963.0,0.02041065]
[1643844713298,2.49132403,36964.0,36962.0,0.00071782]
[1643844713299,0.61766335,36963.0,36962.0,0.00071782]
[1643844713498,1.48969135,36963.0,36962.0,0.00071782]
[1643844713697,1.35767935,36963.0,36962.0,0.00071782]
[1643844713898,0.75767935,36963.0,36962.0,0.00071782]
[1643844714097,0.80767935,36963.0,36962.0,0.00071782]
[1643844714297,0.067669,36960.0,36953.0,0.406]
[1643844714499,0.06767,36958.0,36955.0,0.00119804]
[1643844714697,0.404678,36957.0,36955.0,0.00119804]
[1643844715001,0.604678,36957.0,36955.0,0.00119804]
[1643844715433,0.37847403,36956.0,36953.0,0.406]
[1643844715633,0.054,36955.0,36954.0,0.00029952]
[1643844715832,0.104,36955.0,36954.0,0.00029952]
[1643844716634,0.104,36955.0,36953.0,0.406]
[1643844716835,0.104,36955.0,36953.0,0.40671723]
[1643844716836,0.07995865,36954.0,36953.0,0.40671723]
[1643844717834,0.07995865,36954.0,36953.0,0.406]
[1643844719871,0.07995865,36954.0,36953.0,0.40609393]
[1643844719872,0.76377999,36954.0,36953.0,0.40609393]
[1643844720069,1.22689531,36954.0,36953.0,0.40609393]
[1643844720272,1.32689531,36954.0,36953.0,0.40609393]
[1643844720873,1.37689531,36954.0,36953.0,0.40609393]
[1643844721074,1.32689531,36954.0,36953.0,0.40609393]
[1643844721569,0.89625866,36954.0,36953.0,0.40609393]
[1643844721783,0.95,36953.0,36934.0,0.45816003]
[1643844721975,0.95,36953.0,36929.0,0.002]
[1643844721976,0.05,36935.0,36929.0,0.002]
[1643844722175,0.05,36935.0,36932.0,9.393e-05]
[1643844722176,0.33314334,36934.0,36932.0,9.393e-05]
[1643844722373,1.025678,36933.0,36927.0,0.002]
[1643844722633,1.025678,36933.0,36923.0,0.011]
[1643844722634,0.05,36929.0,36923.0,0.00409393]
[1643844722838,0.054,36928.0,36923.0,0.08360297]
[1643844723034,0.37551734,36936.0,36923.0,0.08360297]
[1643844723035,0.135438,36933.0,36924.0,0.55]
[1643844723236,0.054,36932.0,36925.0,0.27914334]
[1643844723435,0.054,36932.0,36926.0,0.350678]
[1643844723632,0.054,36932.0,36924.0,0.55]
[1643844723633,0.054,36932.0,36925.0,0.418373]
[1643844723833,0.054,36932.0,36925.0,0.350678]
[1643844724134,0.05,36933.0,36929.0,0.31159195]
[1643844724333,0.1,36940.0,36929.0,0.31159195]
[1643844724334,0.5,36940.0,36930.0,0.350678]
[1643844724535,0.5,36940.0,36929.0,0.36159195]
[1643844724735,0.5,36940.0,36930.0,0.418371]
[1643844724934,0.5,36940.0,36932.0,0.0676797]
[1643844725136,0.5,36940.0,36939.0,0.07891241]
[1643844725337,0.16107667,36940.0,36936.0,0.27879733]
[1643844725534,0.32225866,36940.0,36936.0,0.27879733]
[1643844725734,0.32225866,36940.0,36937.0,0.067683]
[1643844726136,0.32225866,36940.0,36938.0,0.054]
[1643844726369,0.32225866,36940.0,36939.0,0.350678]
[1643844726574,0.32225866,36940.0,36939.0,0.404678]
[1643844726769,0.32225866,36940.0,36939.0,0.454678]
[1643844726969,0.32225866,36940.0,36939.0,0.73813733]
[1643844727169,0.32225866,36940.0,36939.0,0.82493405]
[1643844727569,0.32225866,36940.0,36939.0,0.54147472]
[1643844729572,0.32225866,36940.0,36939.0,0.75719118]
[1643844729971,0.32225866,36940.0,36939.0,0.48747472]
[1643844731424,0.32225866,36940.0,36939.0,0.43747472]
[1643844731631,0.32225866,36940.0,36938.0,0.00076599]
[1643844731632,0.42225866,36940.0,36938.0,0.00076599]
[1643844731827,1.2826837,36939.0,36938.0,0.00076599]
[1643844732025,1.4040837,36939.0,36938.0,0.00076599]
[1643844732225,1.4040837,36939.0,36928.0,0.02010854]
[1643844732226,1.56670102,36939.0,36928.0,0.02010854]
[1643844732528,0.20667317,36933.0,36931.0,0.00306445]
[1643844732725,4.32903914,36924.0,36921.0,0.07770255]
[1643844733425,4.32903914,36924.0,36921.0,0.01]
[1643844733624,4.53016973,36924.0,36921.0,0.01]
[1643844733882,4.53016973,36924.0,36922.0,0.067704]
[1643844733883,4.32903914,36924.0,36922.0,0.067704]
[1643844734280,0.69384827,36924.0,36922.0,0.067704]
[1643844734480,0.02010854,36929.0,36923.0,0.63370942]
[1643844734679,0.02010854,36929.0,36924.0,0.054]
[1643844734680,8.54e-06,36929.0,36924.0,0.054]
[1643844734883,8.54e-06,36929.0,36925.0,0.63370942]
[1643844735080,8.54e-06,36929.0,36928.0,0.0201]
[1643844735280,8.54e-06,36929.0,36928.0,0.424778]
[1643844735477,0.60257951,36939.0,36928.0,0.424778]
[1643844735678,0.60257951,36939.0,36936.0,0.46374808]
[1643844735980,0.32225866,36939.0,36937.0,0.121677]
[1643844736177,0.32225866,36939.0,36938.0,0.350678]
[1643844736378,0.32225866,36939.0,36938.0,0.400678]
[1643844736778,0.4081703,36939.0,36938.0,0.400678]
[1643844736979,0.37225866,36939.0,36938.0,0.35077197]
[1643844737621,0.37225866,36939.0,36938.0,9.397e-05]
[1643844737825,0.37225866,36939.0,36937.0,0.06777097]
[1643844738221,0.05,36939.0,36937.0,0.06777097]
[1643844738423,0.32225866,36938.0,36937.0,0.06777097]
[1643844738624,0.32225866,36938.0,36937.0,0.067677]
[1643844739027,0.32225866,36938.0,36937.0,0.35582552]
[1643844739235,0.44592778,36951.0,36937.0,0.35582552]
[1643844739236,0.135363,36960.0,36939.0,1.01767956]
[1643844739430,0.135353,36954.0,36952.0,0.03201]
[1643844739630,0.270738,36962.0,36953.0,0.03247468]
[1643844739831,0.01,36963.0,36961.0,0.03247468]
[1643844740031,0.01,36963.0,36961.0,0.37662027]
[1643844740231,0.01,36963.0,36962.0,0.59249991]
[1643844740528,0.0003,36968.0,36963.0,0.6]
[1643844740728,0.0003,36968.0,36964.0,0.399614]
[1643844741231,0.0003,36968.0,36965.0,0.26897908]
[1643844741484,0.0003,36968.0,36967.0,0.90016501]
[1643844741689,0.0003,36968.0,36967.0,1.34974701]
[1643844741883,0.0003,36968.0,36967.0,1.44974701]
[1643844742084,0.01858722,36969.0,36968.0,0.6]
[1643844742284,0.01858722,36969.0,36968.0,0.345571]
[1643844742891,0.00308041,36978.0,36971.0,0.096425]
[1643844743185,0.01,36979.0,36973.0,0.067607]
[1643844743385,0.01,36979.0,36977.0,0.01]
[1643844743588,0.01,36979.0,36978.0,0.345461]
[1643844743790,0.01,36979.0,36978.0,0.355461]
[1643844743791,0.26991899,36979.0,36978.0,0.355461]
[1643844743986,0.26991899,36979.0,36978.0,0.423062]
[1643844744188,0.01,36989.0,36978.0,0.473062]
[1643844744396,0.01,36989.0,36984.0,0.19426883]
[1643844744589,0.01,36989.0,36985.0,0.63353452]
[1643844744887,0.01,36989.0,36987.0,0.61]
[1643844745149,0.01,36989.0,36987.0,1.49139741]
[1643844745353,0.01,36989.0,36988.0,0.95]
[1643844745549,0.00017993,36998.0,36991.0,0.067574]
[1643844745751,0.01017993,36999.0,36992.0,0.345302]
[1643844746250,0.01017993,36999.0,36998.0,0.61]
[1643844746450,0.01,36999.0,36998.0,1.7729812]
[1643844746648,0.01,36999.0,36998.0,1.90391932]
[1643844746847,0.01,36999.0,36998.0,1.30391932]
[1643844747048,0.01,36999.0,36998.0,0.94691006]
[1643844747249,0.01,36999.0,36998.0,0.87934906]
[1643844748550,0.01,36999.0,36998.0,0.508649]
[1643844748750,0.01,36999.0,36998.0,0.355239]
[1643844748983,0.01,36999.0,36998.0,0.01]
[1643844748984,0.06,36999.0,36998.0,0.01]
[1643844749180,0.6,36998.0,36989.0,0.13516291]
[1643844749375,0.00017993,36998.0,36988.0,0.054]
[1643844749576,0.00017993,36998.0,36990.0,0.28166091]
[1643844749777,0.00017993,36998.0,36996.0,0.08038774]
[1643844749976,0.01017993,36999.0,36990.0,0.28166091]
[1643844750175,0.01017993,36999.0,36996.0,0.0675728]
[1643844750377,0.01017993,36999.0,36997.0,0.34525]
[1643844750576,0.01,36999.0,36997.0,0.34525]
[1643844750783,0.05,36998.0,36997.0,0.34525]
[1643844750978,0.08188986,36997.0,36994.0,0.067588]
[1643844751176,0.05,36995.0,36994.0,0.067588]
[1643844751376,0.05,36995.0,36994.0,0.48045796]
[1643844751583,0.20597534,36998.0,36994.0,0.48045796]
[1643844751584,0.25597534,36998.0,36994.0,0.48045796]
[1643844751779,0.00076829,36996.0,36994.0,0.48045796]
[1643844752178,0.05,36995.0,36994.0,0.48045796]
[1643844753933,0.00018012,36996.0,36994.0,0.48045796]
[1643844754137,0.00076829,36996.0,36995.0,0.27301561]
[1643844754339,0.00307268,37002.0,36995.0,0.27301561]
[1643844754340,0.3,37011.0,36998.0,0.0675799]
[1643844754540,0.054,37018.0,36997.0,0.06758]
[1643844754541,0.01,37019.0,37008.0,0.05]
[1643844754736,0.01,37019.0,37011.0,0.05]
[1643844754936,0.01,37019.0,37014.0,0.09070663]
[1643844755138,0.01,37019.0,37015.0,0.28136665]
[1643844755335,0.01,37019.0,37015.0,0.34891065]
[1643844755539,0.01,37019.0,37015.0,0.41645957]
[1643844755736,0.01,37019.0,37016.0,0.345044]
[1643844755936,0.01,37019.0,37016.0,0.519664]
[1643844756136,0.01,37019.0,37017.0,0.3204534]
[1643844756379,0.01,37019.0,37018.0,0.995018]
[1643844756579,0.01,37019.0,37018.0,1.045018]
[1643844756782,0.01,37019.0,37018.0,1.2588971]
[1643844757178,0.01,37029.0,37019.0,0.6]
[1643844757380,0.01,37029.0,37028.0,0.05]
[1643844757580,0.01,37029.0,37028.0,0.394907]